fUSD/lending_fUSD_20250716
["ID","MTS","AMOUNT","RATE_DAILY","PERIOD"]
[372454380,1752649842870,-460.0,0.00021917,2]
[372454382,1752649842880,-460.0,0.00021917,2]
[372454384,1752649842889,-460.0,0.00021917,2]
[372454386,1752649842899,-460.0,0.00021917,2]
[372454388,1752649842908,-460.0,0.00021917,2]
[372454390,1752649842918,-480.48,0.00021917,2]
[372454392,1752649842927,-1407.98,0.00021917,2]
[372454394,1752649842937,-460.0,0.00021917,2]
[372454396,1752649842947,-460.0,0.00021917,2]
[372454398,1752649842956,-977.88,0.00021917,2]
[372454400,1752649842966,-460.0,0.00021917,2]
[372454402,1752649842976,-460.0,0.00021917,2]
[372454404,1752649842986,-460.0,0.00021917,2]
[372454407,1752649842995,-460.76459641,0.00021917,2]
[372454410,1752649843005,-460.0,0.00021917,2]
[372454413,1752649843015,-460.0,0.00021917,2]
[372454416,1752649843024,-460.0,0.00021917,2]
[372454419,1752649843034,-540.51,0.00021917,2]
[372454422,1752649843044,-460.0,0.00021917,2]
[372454424,1752649843054,-448.95354858,0.00021917,2]
[372454426,1752649843064,-461.89769566,0.00021917,2]
[372454428,1752649843074,-460.0,0.00021917,2]
[372454430,1752649843083,-460.0,0.00021917,2]
[372454432,1752649843093,-752.3,0.00021917,2]
[372454434,1752649843103,-151.0,0.00021917,2]
[372454436,1752649843113,-1936.78,0.00021917,2]
[372454438,1752649843123,-151.0,0.00021917,2]
[372454440,1752649843133,-1114.07,0.00021917,2]
[372454442,1752649843151,-460.0,0.00021917,2]
[372454444,1752649843160,-460.0,0.00021917,2]
[372454446,1752649843170,-1140.36,0.00021917,2]
[372454448,1752649843179,-460.0,0.00021917,2]
[372454450,1752649843189,-460.0,0.00021917,2]
[372454452,1752649843198,-484.82907985,0.00021917,2]
[372454454,1752649843208,-460.0,0.00021917,2]
[372454455,1752649843218,-410.566389,0.00021917,2]
[372454458,1752649843228,-152.1895,0.00021917,2]
[372454459,1752649843238,-465.04,0.00021917,2]
[372454461,1752649843250,-169.629455,0.00021917,2]
[372454464,1752649843260,-460.0,0.00021917,2]
[372454466,1752649843270,-151.712813,0.00021917,2]
[372454468,1752649843279,-764.17,0.00021917,2]
[372454470,1752649843289,-460.0,0.00021917,2]
[372454472,1752649843298,-169.629455,0.00021917,2]
[372454474,1752649843307,-1007.02,0.00021917,2]
[372454476,1752649843317,-460.0,0.00021917,2]
[372454478,1752649843327,-460.0,0.00021917,2]
[372454480,1752649843336,-410.566389,0.00021917,2]
[372454482,1752649843346,-460.0,0.00021917,2]
[372454484,1752649843356,-745.83,0.00021917,2]
[372454486,1752649843365,-424.52056497,0.00021917,2]
[372454488,1752649843375,-499.11,0.00021917,2]
[372454490,1752649843385,-221.233231,0.00021917,2]
[372454492,1752649843394,-460.0,0.00021917,2]
[372454494,1752649843408,-615.59,0.00021917,2]
[372454496,1752649843419,-473.42,0.00021917,2]
[372454498,1752649843428,-221.233231,0.00021917,2]
[372454500,1752649843437,-463.37739623,0.00021917,2]
[372454502,1752649843447,-460.0,0.00021917,2]
[372454504,1752649843457,-562.68,0.00021917,2]
[372454506,1752649843466,-1821.19,0.00021917,2]
[372454508,1752649843481,-460.0,0.00021917,2]
[372454510,1752649843491,-460.0,0.00021917,2]
[372454512,1752649843502,-460.0,0.00021917,2]
[372454514,1752649843511,-460.0,0.00021917,2]
[372454516,1752649843522,-614.39,0.00021917,2]
[372454518,1752649843531,-460.0,0.00021917,2]
[372454520,1752649843540,-478.56,0.00021917,2]
[372454522,1752649843553,-1232.13,0.00021917,2]
[372454524,1752649843563,-460.0,0.00021917,2]
[372454525,1752649843573,-460.0,0.00021917,2]
[372454526,1752649843582,-460.0,0.00021917,2]
[372454527,1752649843591,-460.0,0.00021917,2]
[372454528,1752649843601,-1788.73,0.00021917,2]
[372454529,1752649843611,-151.0,0.00021917,2]
[372454530,1752649843621,-672.14,0.00021917,2]
[372454531,1752649843630,-866.98,0.00021917,2]
[372454533,1752649843640,-672.14,0.00021917,2]
[372454535,1752649843651,-672.14,0.00021917,2]
[372454537,1752649843660,-672.14,0.00021917,2]
[372454539,1752649843671,-672.14,0.00021917,2]
[372454541,1752649843680,-672.14,0.00021917,2]
[372454543,1752649843689,-672.14,0.00021917,2]
[372454545,1752649843700,-672.14,0.00021917,2]
[372454547,1752649843709,-672.14,0.00021917,2]
[372454549,1752649843719,-672.14,0.00021917,2]
[372454551,1752649843728,-877.99,0.00021917,2]
[372454553,1752649843738,-500.0,0.00021917,2]
[372454555,1752649843748,-460.0,0.00021917,2]
[372454557,1752649843757,-460.0,0.00021917,2]
[372454569,1752649843863,-460.0,0.00021917,2]
[372454571,1752649843873,-462.85897206,0.00021917,2]
[372454573,1752649843883,-460.0,0.00021917,2]
[372454575,1752649843892,-460.0,0.00021917,2]
[372454577,1752649843902,-1263.57,0.00021917,2]
[372454579,1752649843911,-2785.06,0.00021917,2]
[372454581,1752649843920,-460.0,0.00021917,2]
[372454583,1752649843930,-462.25010851,0.00021917,2]
[372454585,1752649843940,-460.0,0.00021917,2]
[372454587,1752649843949,-752.03,0.00021917,2]
[372454589,1752649843959,-460.0,0.00021917,2]
[372454591,1752649843969,-818.15,0.00021917,2]
[372454593,1752649843979,-460.0,0.00021917,2]
[372454595,1752649843988,-460.0,0.00021917,2]
[372454597,1752649843999,-460.0,0.00021917,2]
[372454599,1752649844008,-2916.59,0.00021917,2]
[372454601,1752649844017,-460.0,0.00021917,2]
[372454603,1752649844027,-151.0,0.00021917,2]
[372454605,1752649844036,-460.0,0.00021917,2]
[372454607,1752649844045,-460.0,0.00021917,2]
[372454609,1752649844055,-460.0,0.00021917,2]
[372454611,1752649844064,-465.04302869,0.00021917,2]
[372454613,1752649844074,-460.0,0.00021917,2]
[372454615,1752649844084,-774.46,0.00021917,2]
[372454617,1752649844094,-460.0,0.00021917,2]
[372454619,1752649844103,-460.0,0.00021917,2]
[372454621,1752649844112,-460.0,0.00021917,2]
[372454623,1752649844121,-460.0,0.00021917,2]
[372454625,1752649844131,-460.0,0.00021917,2]
[372454627,1752649844140,-821.25,0.00021917,2]
[372454629,1752649844150,-460.0,0.00021917,2]
[372454631,1752649844160,-460.0,0.00021917,2]
[372454633,1752649844169,-1571.48,0.00021917,2]
[372454635,1752649844178,-1219.21,0.00021917,2]
[372454637,1752649844188,-3357.75,0.00021917,2]
[372454639,1752649844198,-460.0,0.00021917,2]
[372454641,1752649844207,-461.04736424,0.00021917,2]
[372454643,1752649844219,-876.48,0.00021917,2]
[372454645,1752649844228,-460.0,0.00021917,2]
[372454647,1752649844238,-1066.63,0.00021917,2]
[372454649,1752649844247,-460.0,0.00021917,2]
[372454651,1752649844257,-460.0,0.00021917,2]
[372454653,1752649844267,-460.0,0.00021917,2]
[372454655,1752649844276,-1257.33,0.00021917,2]
[372454657,1752649844286,-460.0,0.00021917,2]
[372454659,1752649844296,-2551.64,0.00021917,2]
[372454661,1752649844305,-460.0,0.00021917,2]
[372454663,1752649844315,-460.0,0.00021917,2]
[372454665,1752649844326,-933.15,0.00021917,2]
[372454667,1752649844335,-423.35499958,0.00021917,2]
[372454669,1752649844345,-460.0,0.00021917,2]
[372454671,1752649844354,-460.0,0.00021917,2]
[372454673,1752649844363,-500.0,0.00021917,2]
[372454675,1752649844373,-500.0,0.00021917,2]
[372454677,1752649844383,-500.0,0.00021917,2]
[372454679,1752649844392,-460.0,0.00021917,2]
[372454681,1752649844401,-344.82493385,0.00021917,2]
[372454683,1752649844411,-460.0,0.00021917,2]
[372454685,1752649844422,-1493.18,0.00021917,2]
[372454687,1752649844432,-3404.66,0.00021917,2]
[372454689,1752649844442,-1001.75,0.00021917,2]
[372454690,1752649844451,-460.0,0.00021917,2]
[372454693,1752649844461,-645.68,0.00021917,2]
[372454695,1752649844471,-460.0,0.00021917,2]
[372454696,1752649844484,-460.0,0.00021917,2]
[372454698,1752649844493,-3961.49,0.00021917,2]
[372454700,1752649844504,-460.0,0.00021917,2]
[372454702,1752649844514,-460.0,0.00021917,2]
[372454704,1752649844526,-460.0,0.00021917,2]
[372454706,1752649844536,-558.31414049,0.00021917,2]
[372454708,1752649844546,-460.0,0.00021917,2]
[372454710,1752649844557,-3985.83,0.00021917,2]
[372454712,1752649844567,-460.0,0.00021917,2]
[372454714,1752649844577,-471.9,0.00021917,2]
[372454716,1752649844586,-460.0,0.00021917,2]
[372454719,1752649844596,-460.0,0.00021917,2]
[372454720,1752649844606,-460.0,0.00021917,2]
[372454722,1752649844618,-654.55,0.00021917,2]
[372454725,1752649844628,-460.0,0.00021917,2]
[372454727,1752649844637,-841.05,0.00021917,2]
[372454729,1752649844647,-841.05,0.00021917,2]
[372454731,1752649844656,-841.05,0.00021917,2]
[372454733,1752649844666,-841.05,0.00021917,2]
[372454735,1752649844675,-1180.71,0.00021917,2]
[372454737,1752649844684,-841.05,0.00021917,2]
[372454739,1752649844693,-841.05,0.00021917,2]
[372454741,1752649844703,-841.05,0.00021917,2]
[372454743,1752649844712,-841.05,0.00021917,2]
[372454745,1752649844721,-841.05,0.00021917,2]
[372454747,1752649844731,-841.05,0.00021917,2]
[372454749,1752649844740,-460.0,0.00021917,2]
[372454751,1752649844752,-841.05,0.00021917,2]
[372454753,1752649844766,-460.0,0.00021917,2]
[372454754,1752649844775,-618.71,0.00021917,2]
[372454757,1752649844785,-841.05,0.00021917,2]
[372454759,1752649844795,-841.05,0.00021917,2]
[372454761,1752649844805,-463.44329482,0.00021917,2]
[372454763,1752649844814,-460.0,0.00021917,2]
[372454765,1752649844823,-462.71531961,0.00021917,2]
[372454766,1752649844833,-460.0,0.00021917,2]
[372454768,1752649844842,-460.0,0.00021917,2]
[372454770,1752649844851,-460.0,0.00021917,2]
[372454772,1752649844861,-493.46383809,0.00021917,2]
[372454774,1752649844870,-460.0,0.00021917,2]
[372454777,1752649844880,-460.0,0.00021917,2]
[372454779,1752649844890,-1675.46,0.00021917,2]
[372454780,1752649844899,-460.0,0.00021917,2]
[372454782,1752649844908,-1992.99,0.00021917,2]
[372454784,1752649844918,-302.54774229,0.00021917,2]
[372454786,1752649844928,-460.0,0.00021917,2]
[372454788,1752649844938,-460.0,0.00021917,2]
[372454791,1752649844947,-1038.39,0.00021917,2]
[372454792,1752649844957,-462.30433512,0.00021917,2]
[372454795,1752649844967,-577.65,0.00021917,2]
[372454796,1752649844977,-785.65,0.00021917,2]
[372454798,1752649844986,-460.0,0.00021917,2]
[372454801,1752649844996,-533.47157827,0.00021917,2]
[372454802,1752649845005,-460.0,0.00021917,2]
[372454803,1752649845015,-460.0,0.00021917,2]
[372454804,1752649845024,-460.0,0.00021917,2]
[372454805,1752649845033,-460.0,0.00021917,2]
[372454806,1752649845042,-460.64,0.00021917,2]
[372454807,1752649845051,-543.93,0.00021917,2]
[372454808,1752649845060,-4143.88,0.00021917,2]
[372454809,1752649845069,-460.0,0.00021917,2]
[372454811,1752649845079,-460.0,0.00021917,2]
[372454813,1752649845088,-1314.19,0.00021917,2]
[372454815,1752649845098,-460.0,0.00021917,2]
[372454817,1752649845107,-460.0,0.00021917,2]
[372454819,1752649845117,-460.0,0.00021917,2]
[372454821,1752649845127,-477.79,0.00021917,2]
[372454823,1752649845136,-460.0,0.00021917,2]
[372454825,1752649845146,-460.0,0.00021917,2]
[372454827,1752649845155,-460.0,0.00021917,2]
[372454829,1752649845165,-460.0,0.00021917,2]
[372454831,1752649845174,-460.0,0.00021917,2]
[372454833,1752649845185,-460.0,0.00021917,2]
[372454835,1752649845194,-922.81,0.00021917,2]
[372454837,1752649845203,-821.08,0.00021917,2]
[372454839,1752649845213,-460.0,0.00021917,2]
[372454841,1752649845222,-1442.05,0.00021917,2]
[372454843,1752649845232,-727.68,0.00021917,2]
[372454845,1752649845241,-1687.82,0.00021917,2]
[372454847,1752649845252,-929.21,0.00021917,2]
[372454849,1752649845262,-460.0,0.00021917,2]
[372454851,1752649845271,-460.0,0.00021917,2]
[372454853,1752649845280,-3054.41,0.00021917,2]
[372454855,1752649845289,-460.0,0.00021917,2]
[372454857,1752649845299,-460.0,0.00021917,2]
[372454859,1752649845315,-481.68365117,0.00021917,2]
[372454862,1752649845333,-1997.74,0.00021917,2]
[372454865,1752649845342,-463.18837409,0.00021917,2]
[372454867,1752649845352,-460.0,0.00021917,2]
[372454869,1752649845361,-460.0,0.00021917,2]
[372454872,1752649845370,-460.0,0.00021917,2]
[372454874,1752649845380,-460.0,0.00021917,2]
[372454876,1752649845389,-460.0,0.00021917,2]
[372454878,1752649845399,-1220.66,0.00021917,2]
[372454880,1752649845408,-460.0,0.00021917,2]
[372454883,1752649845417,-460.0,0.00021917,2]
[372454886,1752649845427,-802.89,0.00021917,2]
[372454889,1752649845436,-1006.84,0.00021917,2]
[372454892,1752649845446,-2226.08,0.00021917,2]
[372454895,1752649845455,-460.0,0.00021917,2]
[372454898,1752649845465,-460.0,0.00021917,2]
[372454900,1752649845478,-460.0,0.00021917,2]
[372454902,1752649845487,-460.0,0.00021917,2]
[372454904,1752649845499,-1412.19,0.00021917,2]
[372454906,1752649845510,-473.3,0.00021917,2]
[372454908,1752649845520,-460.0,0.00021917,2]
[372454910,1752649845530,-460.0,0.00021917,2]
[372454912,1752649845540,-2561.5,0.00021917,2]
[372454914,1752649845549,-980.64,0.00021917,2]
[372454916,1752649845559,-460.0,0.00021917,2]
[372454918,1752649845569,-726.26,0.00021917,2]
[372454920,1752649845578,-460.0,0.00021917,2]
[372454922,1752649845587,-835.88,0.00021917,2]
[372454924,1752649845597,-460.92467101,0.00021917,2]
[372454926,1752649845607,-487.39760669,0.00021917,2]
[372454928,1752649845616,-460.0,0.00021917,2]
[372454930,1752649845625,-460.0,0.00021917,2]
[372454932,1752649845635,-460.0,0.00021917,2]
[372454934,1752649845644,-460.0,0.00021917,2]
[372454936,1752649845653,-1718.98,0.00021917,2]
[372454939,1752649845663,-1107.67,0.00021917,2]
[372454941,1752649845672,-460.0,0.00021917,2]
[372454942,1752649845682,-460.0,0.00021917,2]
[372454944,1752649845691,-460.0,0.00021917,2]
[372454946,1752649845700,-460.0,0.00021917,2]
[372454948,1752649845710,-1412.55,0.00021917,2]
[372454950,1752649845720,-460.0,0.00021917,2]
[372454952,1752649845729,-1994.97,0.00021917,2]
[372454954,1752649845739,-176.166,0.00021917,2]
[372454956,1752649845749,-460.0,0.00021917,2]
[372454958,1752649845759,-449.76738851,0.00021917,2]
[372454961,1752649845769,-460.0,0.00021917,2]
[372454963,1752649845779,-877.79,0.00021917,2]
[372454965,1752649845789,-2810.83,0.00021917,2]
[372454967,1752649845799,-460.0,0.00021917,2]
[372454968,1752649845808,-460.0,0.00021917,2]
[372454971,1752649845819,-508.9,0.00021917,2]
[372454973,1752649845829,-1184.7,0.00021917,2]
[372454974,1752649845839,-460.0,0.00021917,2]
[372454977,1752649845849,-460.0,0.00021917,2]
[372454979,1752649845859,-485.83,0.00021917,2]
[372454981,1752649845869,-460.0,0.00021917,2]
[372454983,1752649845878,-460.0,0.00021917,2]
[372454985,1752649845887,-460.0,0.00021917,2]
[372454986,1752649845897,-460.0,0.00021917,2]
[372454988,1752649845907,-460.0,0.00021917,2]
[372454991,1752649845917,-488.34,0.00021917,2]
[372454993,1752649845926,-460.0,0.00021917,2]
[372454994,1752649845935,-484.52,0.00021917,2]
[372454997,1752649845945,-460.0,0.00021917,2]
[372454998,1752649845955,-497.88679973,0.00021917,2]
[372455000,1752649845965,-281.0935359,0.00021917,2]
[372455003,1752649845975,-460.0,0.00021917,2]
[372455004,1752649845984,-636.93,0.00021917,2]
[372455007,1752649845994,-624.43,0.00021917,2]
[372455008,1752649846005,-460.0,0.00021917,2]
[372455011,1752649846015,-460.0,0.00021917,2]
[372455012,1752649846025,-681.57,0.00021917,2]
[372455015,1752649846035,-812.88,0.00021917,2]
[372455017,1752649846045,-1367.61,0.00021917,2]
[372455018,1752649846055,-460.0,0.00021917,2]
[372455021,1752649846064,-460.0,0.00021917,2]
[372455023,1752649846074,-252.24456507,0.00021917,2]
[372455025,1752649846083,-460.0,0.00021917,2]
[372455027,1752649846092,-460.0,0.00021917,2]
[372455028,1752649846102,-867.73,0.00021917,2]
[372455031,1752649846111,-460.0,0.00021917,2]
[372455032,1752649846121,-460.0,0.00021917,2]
[372455034,1752649846130,-460.0,0.00021917,2]
[372455037,1752649846140,-460.0,0.00021917,2]
[372455038,1752649846150,-1912.24,0.00021917,2]
[372455040,1752649846159,-460.0,0.00021917,2]
[372455043,1752649846170,-460.0,0.00021917,2]
[372455045,1752649846179,-2499.91,0.00021917,2]
[372455047,1752649846188,-1044.97,0.00021917,2]
[372455049,1752649846198,-1031.22,0.00021917,2]
[372455051,1752649846208,-460.0,0.00021917,2]
[372455053,1752649846217,-1184.2,0.00021917,2]
[372455055,1752649846227,-531.48,0.00021917,2]
[372455057,1752649846237,-463.10860935,0.00021917,2]
[372455058,1752649846246,-658.41,0.00021917,2]
[372455061,1752649846257,-631.23,0.00021917,2]
[372455062,1752649846267,-462.0086326,0.00021917,2]
[372455064,1752649846276,-460.0,0.00021917,2]
[372455066,1752649846286,-460.0,0.00021917,2]
[372455068,1752649846295,-558.14,0.00021917,2]
[372455070,1752649846305,-460.0,0.00021917,2]
[372455072,1752649846315,-3367.08,0.00021917,2]
[372455074,1752649846325,-460.0,0.00021917,2]
[372455076,1752649846334,-460.0,0.00021917,2]
[372455077,1752649846343,-460.0,0.00021917,2]
[372455078,1752649846353,-1607.81,0.00021917,2]
[372455079,1752649846363,-460.0,0.00021917,2]
[372455080,1752649846372,-2289.61,0.00021917,2]
[372455081,1752649846382,-460.0,0.00021917,2]
[372455082,1752649846391,-2837.62,0.00021917,2]
[372455084,1752649846400,-460.0,0.00021917,2]
[372455085,1752649846410,-460.0,0.00021917,2]
[372455088,1752649846420,-460.0,0.00021917,2]
[372455090,1752649846430,-460.0,0.00021917,2]
[372455091,1752649846439,-615.1,0.00021917,2]
[372455093,1752649846448,-385.561155,0.00021917,2]
[372455095,1752649846458,-460.0,0.00021917,2]
[372455097,1752649846468,-725.01,0.00021917,2]
[372455099,1752649846482,-497.84,0.00021917,2]
[372455101,1752649846491,-460.0,0.00021917,2]
[372455103,1752649846501,-460.0,0.00021917,2]
[372455106,1752649846511,-460.0,0.00021917,2]
[372455108,1752649846521,-1736.67,0.00021917,2]
[372455110,1752649846530,-461.82183278,0.00021917,2]
[372455112,1752649846540,-838.66,0.00021917,2]
[372455113,1752649846550,-995.04,0.00021917,2]
[372455116,1752649846561,-1271.23,0.00021917,2]
[372455118,1752649846571,-1867.41,0.00021917,2]
[372455119,1752649846580,-463.1495854,0.00021917,2]
[372455121,1752649846590,-460.0,0.00021917,2]
[372455124,1752649846599,-582.44,0.00021917,2]
[372455125,1752649846609,-885.3,0.00021917,2]
[372455128,1752649846619,-1582.99,0.00021917,2]
[372455130,1752649846628,-460.0,0.00021917,2]
[372455131,1752649846638,-462.41125172,0.00021917,2]
[372455134,1752649846647,-701.89,0.00021917,2]
[372455136,1752649846657,-3376.03,0.00021917,2]
[372455137,1752649846667,-531.89093634,0.00021917,2]
[372455139,1752649846676,-460.0,0.00021917,2]
[372455141,1752649846686,-806.42,0.00021917,2]
[372455143,1752649846696,-1351.64,0.00021917,2]
[372455146,1752649846705,-1111.26,0.00021917,2]
[372455147,1752649846715,-460.0,0.00021917,2]
[372455149,1752649846724,-460.0,0.00021917,2]
[372455151,1752649846734,-460.0,0.00021917,2]
[372455153,1752649846743,-460.0,0.00021917,2]
[372455155,1752649846753,-1266.45,0.00021917,2]
[372455157,1752649846763,-460.0,0.00021917,2]
[372455159,1752649846773,-1458.76,0.00021917,2]
[372455161,1752649846782,-460.0,0.00021917,2]
[372455163,1752649846792,-520.95,0.00021917,2]
[372455165,1752649846802,-460.0,0.00021917,2]
[372455167,1752649846811,-460.0,0.00021917,2]
[372455170,1752649846822,-460.0,0.00021917,2]
[372455172,1752649846832,-1949.71,0.00021917,2]
[372455174,1752649846842,-460.0,0.00021917,2]
[372455175,1752649846852,-460.0,0.00021917,2]
[372455177,1752649846862,-460.0,0.00021917,2]
[372455179,1752649846871,-579.71,0.00021917,2]
[372455182,1752649846881,-460.0,0.00021917,2]
[372455184,1752649846890,-460.0,0.00021917,2]
[372455186,1752649846900,-1379.61,0.00021917,2]
[372455188,1752649846909,-1203.43,0.00021917,2]
[372455190,1752649846922,-460.0,0.00021917,2]
[372455192,1752649846937,-1584.59,0.00021917,2]
[372455194,1752649846948,-460.0,0.00021917,2]
[372455196,1752649846957,-512.65,0.00021917,2]
[372455198,1752649846967,-2841.0,0.00021917,2]
[372455200,1752649846977,-460.0,0.00021917,2]
[372455202,1752649846987,-1702.87,0.00021917,2]
[372455204,1752649846997,-460.0,0.00021917,2]
[372455206,1752649847008,-460.0,0.00021917,2]
[372455208,1752649847018,-460.0,0.00021917,2]
[372455210,1752649847028,-460.0,0.00021917,2]
[372455212,1752649847039,-1570.23,0.00021917,2]
[372455214,1752649847048,-1702.14,0.00021917,2]
[372455216,1752649847057,-460.0,0.00021917,2]
[372455218,1752649847066,-460.0,0.00021917,2]
[372455220,1752649847076,-460.0,0.00021917,2]
[372455222,1752649847085,-460.0,0.00021917,2]
[372455224,1752649847094,-944.14,0.00021917,2]
[372455226,1752649847104,-460.0,0.00021917,2]
[372455228,1752649847114,-1181.03,0.00021917,2]
[372455230,1752649847124,-460.0,0.00021917,2]
[372455232,1752649847133,-460.0,0.00021917,2]
[372455234,1752649847142,-1428.6,0.00021917,2]
[372455235,1752649847152,-1047.61,0.00021917,2]
[372455237,1752649847162,-460.0,0.00021917,2]
[372455239,1752649847171,-1447.1,0.00021917,2]
[372455242,1752649847181,-460.0,0.00021917,2]
[372455244,1752649847191,-2628.14,0.00021917,2]
[372455246,1752649847200,-460.0,0.00021917,2]
[372455247,1752649847210,-460.0,0.00021917,2]
[372455249,1752649847220,-460.0,0.00021917,2]
[372455251,1752649847230,-460.0,0.00021917,2]
[372455253,1752649847239,-460.0,0.00021917,2]
[372455255,1752649847248,-460.0,0.00021917,2]
[372455257,1752649847259,-1025.53,0.00021917,2]
[372455259,1752649847268,-2959.56,0.00021917,2]
[372455261,1752649847277,-460.0,0.00021917,2]
[372455263,1752649847288,-493.69,0.00021917,2]
[372455265,1752649847300,-460.0,0.00021917,2]
[372455267,1752649847311,-460.0,0.00021917,2]
[372455269,1752649847321,-460.0,0.00021917,2]
[372455272,1752649847331,-460.0,0.00021917,2]
[372455274,1752649847343,-461.082144,0.00021917,2]
[372455275,1752649847354,-460.0,0.00021917,2]
[372455277,1752649847364,-705.22,0.00021917,2]
[372455280,1752649847373,-460.0,0.00021917,2]
[372455282,1752649847382,-1178.85,0.00021917,2]
[372455283,1752649847392,-651.75,0.00021917,2]
[372455286,1752649847405,-687.93,0.00021917,2]
[372455287,1752649847415,-460.0,0.00021917,2]
[372455290,1752649847425,-460.0,0.00021917,2]
[372455292,1752649847434,-460.0,0.00021917,2]
[372455294,1752649847444,-544.98123664,0.00021917,2]
[372455295,1752649847454,-460.0,0.00021917,2]
[372455297,1752649847464,-460.0,0.00021917,2]
[372455300,1752649847478,-500.0,0.00021917,2]
[372455302,1752649847489,-460.0,0.00021917,2]
[372455303,1752649847502,-979.84,0.00021917,2]
[372455305,1752649847512,-460.98407075,0.00021917,2]
[372455307,1752649847522,-460.0,0.00021917,2]
[372455309,1752649847532,-460.0,0.00021917,2]
[372455311,1752649847542,-579.15,0.00021917,2]
[372455313,1752649847553,-460.0,0.00021917,2]
[372455315,1752649847564,-411.73068748,0.00021917,2]
[372455317,1752649847575,-460.0,0.00021917,2]
[372455320,1752649847585,-1285.6,0.00021917,2]
[372455321,1752649847593,-460.0,0.00021917,2]
[372455322,1752649847602,-1704.77,0.00021917,2]
[372455323,1752649847611,-460.0,0.00021917,2]
[372455324,1752649847620,-460.0,0.00021917,2]
[372455325,1752649847629,-500.0,0.00021917,2]
[372455326,1752649847639,-500.0,0.00021917,2]
[372455327,1752649847648,-500.0,0.00021917,2]
[372455328,1752649847657,-460.0,0.00021917,2]
[372455330,1752649847667,-641.17,0.00021917,2]
[372455332,1752649847676,-460.0,0.00021917,2]
[372455334,1752649847686,-2355.83,0.00021917,2]
[372455336,1752649847695,-255.60130153,0.00021917,2]
[372455338,1752649847704,-460.0,0.00021917,2]
[372455340,1752649847715,-460.0,0.00021917,2]
[372455342,1752649847724,-2336.9,0.00021917,2]
[372455344,1752649847733,-460.0,0.00021917,2]
[372455347,1752649847743,-1878.0,0.00021917,2]
[372455349,1752649847754,-461.37196757,0.00021917,2]
[372455351,1752649847763,-460.0,0.00021917,2]
[372455353,1752649847773,-460.0,0.00021917,2]
[372455355,1752649847782,-460.0,0.00021917,2]
[372455357,1752649847791,-460.0,0.00021917,2]
[372455358,1752649847800,-460.0,0.00021917,2]
[372455361,1752649847810,-460.0,0.00021917,2]
[372455362,1752649847820,-460.0,0.00021917,2]
[372455364,1752649847829,-411.27936849,0.00021917,2]
[372455366,1752649847839,-461.07335345,0.00021917,2]
[372455368,1752649847849,-460.0,0.00021917,2]
[372455370,1752649847858,-460.0,0.00021917,2]
[372455372,1752649847868,-460.0,0.00021917,2]
[372455374,1752649847878,-460.0,0.00021917,2]